Cogmind - Beta 16.1 @@@ ROGUE MODE // 2026.02.28 @ 00:59:34 Player: mephiles96 Result: Destroyed by G-47 Trooper with Particle Gun Performance ------------- Evolutions (3) 1500 Regions Visited (8) 1600 Robots Destroyed (13) 65 Value Destroyed (293) 293 Prototype IDs (23) 460 Alien Tech Used (0) 0 Bonus (328) 328 TOTAL SCORE: 4246 Bonus ------- Follower Combat Kills 28 Aligned with FarCom 300 Cogmind --------- Core Integrity 0/700 Matter 300/300 Energy 98/100 System Corruption 11% Temperature Cool (10) Movement Walking (120) Location -7/Lower Caves Parts ------- > --- POWER (2) -------- (None) > --- PROPULSION (5) --- Carbon-fiber Leg > --- UTILITY (4) ------ Coolant Injector Small Storage Unit > --- WEAPON (2) ------- Great Maul > --- INVENTORY (8) ---- Cesium-ion Thruster Makeshift Flight Unit Signal Interpreter Cloak of Protection Assault Rifle Assault Rifle Assault Rifle Mining Laser Peak State ------------ > --- POWER ------------ Ion Engine Light Ion Engine > --- PROPULSION ------- Flight Unit VTOL Module VTOL Module VTOL Module VTOL Module > --- UTILITY ---------- Coolant Injector Small Storage Unit Improved Terrain Scanner Seismic Detector > --- WEAPON ----------- Proton Missile Launcher > --- INVENTORY -------- Armored Wheel Signal Interpreter Cloak of Protection Assault Rifle Assault Rifle Assault Rifle Mining Laser Great Maul [Rating: 25] Favorites ----------- Power Light Ion Engine Engine Light Ion Engine Propulsion Armored Wheel Treads Light Treads Leg Carbon-fiber Leg Wheel Armored Wheel Flight Unit VTOL Module Utility Seismic Detector Device Seismic Detector Storage High-capacity Storage Unit Weapon Assault Rifle Ballistic Gun Assault Rifle Launcher Proton Missile Launcher Impact Weapon Great Maul Build | -11 -10 -10 -10 -9 -8 -7 -7 -7 ------- Run | Yrd Mat Min Exi Min Mat Fac Low Low Slots Evolved 6 | . . . . . 4 2 . . Power 1 | . . . . . 1 . . . Propulsion 3 | . . . . . 2 1 . . Utility 2 | . . . . . 1 1 . . Weapon . | . . . . . . . . . Parts Attached 24 | 7 5 . . . 5 3 4 . Power 2 | 1 . . . . 1 . . . Engine 2 | 1 . . . . 1 . . . Core . | . . . . . . . . . Reactor . | . . . . . . . . . Propulsion 12 | 2 3 . . . 4 1 2 . Treads 2 | 2 . . . . . . . . Leg 1 | . . . . . . . 1 . Wheel 4 | . 3 . . . . . 1 . Hover . | . . . . . . . . . Flight 5 | . . . . . 4 1 . . Utility 5 | 2 1 . . . . 2 . . Device 3 | 1 . . . . . 2 . . Storage 2 | 1 1 . . . . . . . Processor . | . . . . . . . . . Hackware . | . . . . . . . . . Protection . | . . . . . . . . . Artifact . | . . . . . . . . . Weapon 5 | 2 1 . . . . . 2 . Energy Gun . | . . . . . . . . . Energy Cannon . | . . . . . . . . . Ballistic Gun 3 | 2 1 . . . . . . . Ballistic Cannon . | . . . . . . . . . Launcher 1 | . . . . . . . 1 . Special Weapon . | . . . . . . . . . Impact Weapon 1 | . . . . . . . 1 . Slashing Weapon . | . . . . . . . . . Piercing Weapon . | . . . . . . . . . Special Melee Weapon . | . . . . . . . . . Unidentified Prototypes . | . . . . . . . . . Corrupted Parts 1 | . . . . . . . 1 . System Corruption 11 | . . . . . . . 11 . Parts Lost 11 | . . . . . . . 11 . Power 2 | . . . . . . . 2 . Propulsion 6 | . . . . . . . 6 . Utility 2 | . . . . . . . 2 . Weapon 1 | . . . . . . . 1 . Highest Loss Streak 11 | . . . . . . . 11 . To Critical Strikes . | . . . . . . . . . Average Backups 12 | 5 12 18 19 20 9 7 7 7 Power . | . 1 1 1 1 . . . . Propulsion 5 | 3 5 8 9 9 3 1 . 1 Utility 4 | . 4 6 6 7 3 2 2 2 Weapon 3 | 1 1 3 3 3 2 3 4 4 Tool/Special . | . . . . . . . . . Unused Backups 16 | 1 2 . . . 7 . . 6 Power . | . . . . . . . . . Propulsion 6 | . 1 . . . 3 . . 2 Utility 6 | . 1 . . . 3 . . 2 Weapon 4 | 1 . . . . 1 . . 2 Tool/Special . | . . . . . . . . . Average Slot Usage (%) 77 | . 100 100 100 100 79 85 31 30 Engine 10 | . 14 14 14 14 16 15 1 . Treads 2 | . 13 . . . . . . . Leg 1 | . . . . . . . 1 7 Wheel 15 | . 14 28 28 28 2 . 1 . Flight 3 | . . . . . 32 38 4 . Device 12 | . 14 14 14 14 9 16 10 7 Storage 11 | . 14 14 14 14 9 7 7 7 Ballistic Gun 18 | . 28 28 28 28 10 7 . . Impact Weapon 1 | . . . . . . . 2 7 Peak Build Rating 25 | 8 11 11 12 12 16 23 25 13 Average Rating 10 | 5 8 11 11 12 14 20 10 12 On Entrance 11 | . 8 11 11 12 12 14 23 12 Avg Prop Armor Cover (%) 10 | . 11 . . . . . 8 . Naked Turns . | . . . . . . . . . Heaviest Build 48 | 12 48 48 48 48 16 18 23 10 Greatest Support 40 | 40 40 24 24 24 16 20 20 15 Greatest Overweight (x) 4 | 1 4 1 1 1 . . 3 . Average Overweight (x) . | . 2 1 1 1 . . . . Largest Inventory Capacity 20 | 8 20 20 20 20 20 8 8 8 Average Capacity 14 | 7 18 20 20 20 8 8 8 8 Most Carried 20 | 8 20 19 20 20 19 8 8 8 Average Carried 12 | 6 12 18 19 20 8 7 7 7 Final Capacity 20 | 8 20 20 20 20 8 8 8 8 Final Carried 20 | 8 18 19 20 20 8 8 7 8 Class Distribution -------------------- 94% | Mutant 4% | Sprinter Dominant Class ---------------- Mutant | -10/Materials Mutant | -10/Mines Mutant | -10/Exiles Mutant | -9/Mines Sprinter | -8/Materials Scout | -7/Factory Mutant | -7/Lower Caves Mutant | -7/Lower Caves Resources | -11 -10 -10 -10 -9 -8 -7 -7 -7 ----------- Run | Yrd Mat Min Exi Min Mat Fac Low Low Matter Collected 640 | 356 150 18 . . 60 . 48 8 Remotely . | . . . . . . . . . Salvage Created 400 | 127 . 28 . . . . 245 . Parts 23 | 14 . 2 . . . . 7 . Haulers Intercepted . | . . . . . . . . . Recyclers Shooed 1 | 1 . . . . . . . . Parts Field Recycled . | . . . . . . . . . Retrieved Matter . | . . . . . . . . . Parts Self-Destructed 11 | . . . . . . . 11 . Prevented 3 | . . . . . . . 3 . Parts Restored . | . . . . . . . . . Kills | -11 -10 -10 -10 -9 -8 -7 -7 -7 ------- Run | Yrd Mat Min Exi Min Mat Fac Low Low Combat Hostiles Destroyed 8 | . . 2 . . . . 6 . Melee 5 | . . . . . . . 5 . Guns 2 | . . 2 . . . . . . AOE 1 | . . . . . . . 1 . Classes Destroyed 5 | 3 . 1 . . . . 1 . Worker 1 | 1 . . . . . . . . Tunneler 3 | 3 . . . . . . . . Recycler 1 | 1 . . . . . . . . Swarmer 4 | . . 2 . . . . 2 . Grunt 4 | . . . . . . . 4 . Best Kill Streak 5 | 4 . 2 . . . . 5 . Combat Bots Only 5 | . . 2 . . . . 5 . Max Kills in Single Turn 1 | 1 . 1 . . . . 1 . Gunslinging . | . . . . . . . . . Exploded 1 | . . . . . . . 1 . Melee 1 | . . . . . . . 1 . Uniques/NPCs Destroyed . | . . . . . . . . . Combat | -11 -10 -10 -10 -9 -8 -7 -7 -7 -------- Run | Yrd Mat Min Exi Min Mat Fac Low Low Hostile Shots Fired 162 | . . 9 . . . . 141 12 Missed 61 | . . 1 . . . . 52 8 Hits 101 | . . 8 . . . . 89 4 Projectile 101 | . . 8 . . . . 89 4 Critical Strikes 1 | . . . . . . . 1 . Damage Taken 1507 | . . 71 . . . . 1396 40 Core 716 | . . . . . . . 694 22 Absorbed by Shields . | . . . . . . . . . Core Remaining (%) 100 | 100 . . . 100 100 . . . Volleys Fired 22 | 14 . 3 . . . . 5 . Largest 2 | 2 . 2 . . . . 1 . Hottest 40 | 40 . 40 . . . . 39 . Shots Fired 39 | 28 . 6 . . . . 5 . Gun 34 | 28 . 6 . . . . . . Cannon . | . . . . . . . . . Launcher 5 | . . . . . . . 5 . Special . | . . . . . . . . . Kinetic 34 | 28 . 6 . . . . . . Thermal . | . . . . . . . . . Explosive . | . . . . . . . . . Electromagnetic 5 | . . . . . . . 5 . Robot Hit Streak 4 | 4 . 1 . . . . 1 . Robot Miss Streak 4 | 3 . 4 . . . . 1 . Penetration Max . | . . . . . . . . . Secondary Targets . | . . . . . . . . . Shots Hit Robots 21 | 12 . 1 . . . . 8 . Core Hits 12 | 6 . 2 . . . . 4 . Critical Kills . | . . . . . . . . . Critical Parts Destroyed 3 | . . . . . . . 3 . Critical Strikes 3 | . . . . . . . 3 . Smash 3 | . . . . . . . 3 . Melee Attacks 8 | . . . . . . . 8 . Impact 8 | . . . . . . . 8 . Slashing . | . . . . . . . . . Piercing . | . . . . . . . . . Sneak Attacks . | . . . . . . . . . Combat Hostiles . | . . . . . . . . . Follow-up Attacks . | . . . . . . . . . Damage Inflicted 541 | 125 . 20 . . . . 396 . Guns 145 | 125 . 20 . . . . . . Cannons . | . . . . . . . . . Explosions 91 | . . . . . . . 91 . Melee 305 | . . . . . . . 305 . Ramming . | . . . . . . . . . Kinetic 145 | 125 . 20 . . . . . . Thermal . | . . . . . . . . . Explosive . | . . . . . . . . . Electromagnetic 91 | . . . . . . . 91 . Impact 305 | . . . . . . . 305 . Slashing . | . . . . . . . . . Piercing . | . . . . . . . . . Highest Corruption 11 | . . . . . . . 11 11 Average Corruption 11 | . . . . . . . 11 11 Corruption Purged . | . . . . . . . . . Corruption Blocked . | . . . . . . . . . Effects 7 | . . . . . . . 1 6 Message Errors 2 | . . . . . . . . 2 Matter Fused 2 | . . . . . . . 1 1 Heat Flow Errors 2 | . . . . . . . . 2 Data Loss (minor) 1 | . . . . . . . . 1 Overload Shots . | . . . . . . . . . Overflow Damage 179 | . . . . . . . 179 . Projectiles . | . . . . . . . . . Explosions . | . . . . . . . . . Melee 179 | . . . . . . . 179 . Knockbacks . | . . . . . . . . . Impact . | . . . . . . . . . Kinetic . | . . . . . . . . . Secondary . | . . . . . . . . . Self-Inflicted Damage 16 | . . . . . . . 16 . Shots 1 | . . . . . . . 1 . Rammed . | . . . . . . . . . Targets Rammed . | . . . . . . . . . Kicked . | . . . . . . . . . Crushed . | . . . . . . . . . Highest Temperature 195 | . . . . . . 26 14 195 Average Temperature 24 | . . . . . . 12 6 89 Received Heat Transfer 171 | . . . . . . . 153 18 Siege Activations . | . . . . . . . . . Martial Activations . | . . . . . . . . . Shielding Activations . | . . . . . . . . . Robots Disrupted . | . . . . . . . . . Combat Hostiles . | . . . . . . . . . Robots Corrupted . | . . . . . . . . . Combat Hostiles . | . . . . . . . . . Parts Fried . | . . . . . . . . . Impact Corruptions 5 | . . . . . . . 5 . Robots Melted . | . . . . . . . . . Combat Hostiles . | . . . . . . . . . Parts Melted . | . . . . . . . . . Heat Transferred . | . . . . . . . . . Parts Sabotaged . | . . . . . . . . . Parts Stolen . | . . . . . . . . . Parts Stripped . | . . . . . . . . . Power Chain Reactions . | . . . . . . . . . Alert | -11 -10 -10 -10 -9 -8 -7 -7 -7 ------- Run | Yrd Mat Min Exi Min Mat Fac Low Low Maximum Alert Level . | . . . . . . . . . Low Security (%) 100 | 100 100 100 . 100 100 100 . . Level 1 . | . . . . . . . . . Level 2 . | . . . . . . . . . Level 3 . | . . . . . . . . . Level 4 . | . . . . . . . . . Level 5 . | . . . . . . . . . High Security . | . . . . . . . . . Max Security . | . . . . . . . . . Peak Influence 86 | 10 . 86 . . 15 2 . . Initial 2 | . . . . . . 2 . . Average 11 | 1 . 26 . . 2 . . . Influence Increases 678 | 25 . 177 . . 21 . 440 15 Destroy 0b10 Robot/C 240 | . . 120 . . . . 120 . Destroy 0b10 Robot/NC 25 | 25 . . . . . . . . Destroy Leader 40 | . . 20 . . . . 20 . Allied During Kill 22 | . . 22 . . . . . . Successful Hack 6 | . . . . . 6 . . . Partial Spotted 15 | . . . . . 15 . . . Lose Combat Pursuer 330 | . . 15 . . . . 300 15 Influence Decreases 610 | 25 . 120 57 . 16 5 250 137 Entered New Map 97 | . . . 57 . . 3 . 37 Time Decay 433 | 25 . 120 . . 16 2 170 100 Lost Part 80 | . . . . . . . 80 . Squads Dispatched . | . . . . . . . . . Investigation . | . . . . . . . . . Extermination . | . . . . . . . . . Reinforcement . | . . . . . . . . . Assault . | . . . . . . . . . Garrison . | . . . . . . . . . Intercept . | . . . . . . . . . Searches Triggered . | . . . . . . . . . Construction Impeded . | . . . . . . . . . Haulers Reinforced . | . . . . . . . . . Active Scanning Responses . | . . . . . . . . . Cargo Convoy Interrupts . | . . . . . . . . . Stealth | -11 -10 -10 -10 -9 -8 -7 -7 -7 --------- Run | Yrd Mat Min Exi Min Mat Fac Low Low Distress Signals . | . . . . . . . . . Communications Jammed . | . . . . . . . . . Distress Signals . | . . . . . . . . . Times Spotted 42 | . . 6 . . . . 28 8 Peak Tracking Total 8 | . . 3 . . . . 5 8 Tactical Retreats 12 | . . 1 . . . . 10 1 Traps | -11 -10 -10 -10 -9 -8 -7 -7 -7 ------- Run | Yrd Mat Min Exi Min Mat Fac Low Low Traps Triggered . | . . . . . . . . . Indirectly . | . . . . . . . . . Trap Hack Attempts . | . . . . . . . . . Triggered . | . . . . . . . . . Disarmed . | . . . . . . . . . Reprogrammed . | . . . . . . . . . Reused . | . . . . . . . . . Traps Extracted . | . . . . . . . . . Installed . | . . . . . . . . . Triggered . | . . . . . . . . . Machines | -11 -10 -10 -10 -9 -8 -7 -7 -7 ---------- Run | Yrd Mat Min Exi Min Mat Fac Low Low Machines Disabled . | . . . . . . . . . Max in Single Turn . | . . . . . . . . . Machines Repaired . | . . . . . . . . . Machines Dismantled . | . . . . . . . . . Machines Sabotaged . | . . . . . . . . . Overloaded Fab Kills . | . . . . . . . . . Hacking | -11 -10 -10 -10 -9 -8 -7 -7 -7 --------- Run | Yrd Mat Min Exi Min Mat Fac Low Low Machines Accessed 5 | . 1 . 1 . 1 2 . . Terminals 3 | . 1 . . . 1 1 . . Fabricators . | . . . . . . . . . Repair Stations 1 | . . . . . . 1 . . Recycling Units . | . . . . . . . . . Scanalyzers . | . . . . . . . . . Garrison Access . | . . . . . . . . . Total Hacks 5 | . 1 . 1 . 1 2 . . Successful 2 | . . . 1 . 1 . . . Failed 3 | . 1 . . . . 2 . . Catastrophic 2 | . . . . . . 2 . . Database Lockouts . | . . . . . . . . . Manual 4 | . 1 . 1 . 1 1 . . Terminals 3 | . 1 . . . 1 1 . . Fabricators . | . . . . . . . . . Repair Stations 1 | . . . . . . 1 . . Recycling Units . | . . . . . . . . . Scanalyzers . | . . . . . . . . . Garrison Access . | . . . . . . . . . Terminal Hacks 1 | . . . 1 . . . . . Proto ID Catalog 1 | . . . 1 . . . . . Fabricator Hacks . | . . . . . . . . . Repair Station Hacks . | . . . . . . . . . Recycling Unit Hacks . | . . . . . . . . . Scanalyzer . | . . . . . . . . . Garrison Access Hacks . | . . . . . . . . . Unauthorized Hacks 1 | . . . . . 1 . . . Terminals 1 | . . . . . 1 . . . Assimilate 1 | . . . . . 1 . . . Fabricators . | . . . . . . . . . Repair Stations . | . . . . . . . . . Recycling Units . | . . . . . . . . . Scanalyzers . | . . . . . . . . . Garrison Access . | . . . . . . . . . Data Cores Recovered . | . . . . . . . . . Used . | . . . . . . . . . Hacking Detections 3 | . 1 . . . . 2 . . Full Trace Events . | . . . . . . . . . Feedback Events . | . . . . . . . . . Feedback Blocked . | . . . . . . . . . Robot Schematics Acquired . | . . . . . . . . . Robots Built . | . . . . . . . . . Authchips . | . . . . . . . . . Time . | . . . . . . . . . Total Robot Build Rating . | . . . . . . . . . Part Schematics Acquired . | . . . . . . . . . Parts Built . | . . . . . . . . . Authchips . | . . . . . . . . . Time . | . . . . . . . . . Total Part Build Rating . | . . . . . . . . . Part Studies Acquired . | . . . . . . . . . Parts Repaired . | . . . . . . . . . Time . | . . . . . . . . . Parts Recycled . | . . . . . . . . . Recycled Matter . | . . . . . . . . . Retrieved Matter . | . . . . . . . . . Retrieved Components . | . . . . . . . . . Parts Scanalyzed . | . . . . . . . . . Part Schematics Acquired . | . . . . . . . . . Parts Damaged . | . . . . . . . . . Bothacking | -11 -10 -10 -10 -9 -8 -7 -7 -7 ------------ Run | Yrd Mat Min Exi Min Mat Fac Low Low Used RIF Installer . | . . . . . . . . . Robots Hacked . | . . . . . . . . . Non-combat . | . . . . . . . . . Combat . | . . . . . . . . . Robot Hacks Applied . | . . . . . . . . . Relay Couplers Released . | . . . . . . . . . Fabnet Peak Effective % . | . . . . . . . . . Robots Rewired . | . . . . . . . . . Allies Hacked . | . . . . . . . . . Hacks Repelled . | . . . . . . . . . Allies | -11 -10 -10 -10 -9 -8 -7 -7 -7 -------- Run | Yrd Mat Min Exi Min Mat Fac Low Low Total Allies 3 | . . 3 . . . . . . Largest Group 3 | . . 3 3 3 3 . . . Highest-Rated Group 40 | . . 40 40 40 40 . . . Highest-Rated Ally 16 | . . 16 16 16 16 . . . Total Orders . | . . . . . . . . . Ally Attacks 7 | . . 7 . . . . . . Total Damage 76 | . . 76 . . . . . . Kills 4 | . . 4 . . . . . . Allies Corrupted . | . . . . . . . . . Allies Melted . | . . . . . . . . . Intel | -11 -10 -10 -10 -9 -8 -7 -7 -7 ------- Run | Yrd Mat Min Exi Min Mat Fac Low Low Active Infowar (turns) 1336 | 54 319 465 273 49 62 42 72 . Terrain 92 | . . . . . . 41 51 . Seismic 1336 | 54 319 465 273 49 62 42 72 . Robot Analysis Total . | . . . . . . . . . Derelict Logs Recovered 5 | . . 1 . 1 . . 2 1 Drone Launches . | . . . . . . . . . Drone Recoveries . | . . . . . . . . . Exploration | -11 -10 -10 -10 -9 -8 -7 -7 -7 ------------- Run | Yrd Mat Min Exi Min Mat Fac Low Low Turns Passed 1922 | 163 319 465 273 49 62 42 340 209 Spaces Moved 1733 | 76 224 373 252 42 136 143 313 174 Core 166 | 19 . . . . . . 147 . Treads 81 | 57 24 . . . . . . . Legs 229 | . . . . . . . 55 174 Wheels 939 | . 200 373 252 42 . . 72 . Hover . | . . . . . . . . . Flight 318 | . . . . . 136 143 39 . Fastest Speed 24 | 50 105 105 105 105 26 24 24 120 Average Speed 96 | 135 131 105 105 105 26 24 95 120 Slowest Speed 200 | 160 160 105 105 105 26 24 200 120 Overloaded Moves . | . . . . . . . . . Propulsion Burnouts . | . . . . . . . . . Robots Hopped 1 | . . . . . . 1 . . Potential Cave-ins . | . . . . . . . . . Cave-ins Triggered . | . . . . . . . . . Exploration Rate (%) 32 | 3 31 69 66 16 18 3 57 31 Regions Visited 8 Branch Regions 5 Pre-discovered Areas 4 | . . 2 . 1 . . 1 . Known Exits Taken . | . . . . . . . . . Unknown Exits Taken 8 | 1 1 1 1 1 1 1 1 . Scrap Searched 6 | . . . . 1 . . 4 1 Spaces Dug . | . . . . . . . . . Terrain Destroyed . | . . . . . . . . . Melee . | . . . . . . . . . Projectile . | . . . . . . . . . AOE . | . . . . . . . . . Terrain Rammed . | . . . . . . . . . Walls Destroyed . | . . . . . . . . . Machines Disabled . | . . . . . . . . . Actions | -11 -10 -10 -10 -9 -8 -7 -7 -7 --------- Run | Yrd Mat Min Exi Min Mat Fac Low Low Total 1921 | 109 250 440 260 46 162 149 330 175 Wait 91 | . 1 64 6 5 15 . . . Move 1723 | 75 223 372 251 41 135 140 312 174 Hop 1 | . . . . . . 1 . . Pick Up 37 | 12 14 1 2 . 2 4 1 1 Fast Attach 5 | 4 . . . . . . 1 . Attach 12 | 3 . . . . 4 3 2 . Detach 2 | . . . . . 2 . . . Swap 8 | . 5 . . . 2 . 1 . Drop 12 | 1 7 . 1 . 2 1 . . Fire 22 | 14 . 3 . . . . 5 . Melee 8 | . . . . . . . 8 . Ram . | . . . . . . . . . Kick . | . . . . . . . . . Crush . | . . . . . . . . . Escape Stasis . | . . . . . . . . . Rewire . | . . . . . . . . . Trap . | . . . . . . . . . Miscellaneous . | . . . . . . . . . Route ------- -11/Scrapyard -10/Materials -10/Mines -10/Exiles -9/Mines -8/Materials -7/Factory -7/Lower Caves -7/Lower Caves History --------- Turn | Location | Event 20 | -11/Scrapyard | Discovered new exit (range 16) 164 | -11/Scrapyard | Entered Materials 165 | -10/Materials | Met a group of wandering Federalists 304 | -10/Materials | Build established: Mutant 423 | -10/Materials | Discovered new exit (range 12) 483 | -10/Materials | Entered Mines 535 | -10/Mines | Learned location of Zion (-6) 615 | -10/Mines | Assisted by bots powering up and referring to "LRC-V3" 833 | -10/Mines | Learned location of Storage (-7) 936 | -10/Mines | Deemed a non-threat by the Exiles lab entrance 936 | -10/Mines | Discovered new exit (range 5) 948 | -10/Mines | Entered Exiles 948 | -10/Exiles | Accompanied by 3 allies 975 | -10/Exiles | Met 8R-AWN 992 | -10/Exiles | Met EX-HEX 1023 | -10/Exiles | Met EX-BIN 1038 | -10/Exiles | Aligned with FarCom system 1039 | -10/Exiles | Given EX-Vault access code 1063 | -10/Exiles | Opened EX-Vault 1071 | -10/Exiles | Found Cloak of Protection 1093 | -10/Exiles | Warned to stay clear of 0b10 Research branches 1107 | -10/Exiles | Exiles lab attacked by MAIN.C 1203 | -10/Exiles | Discovered new exit (range 12) 1221 | -10/Exiles | Left Exiles lab with Cloak of Protection 1221 | -10/Exiles | Entered Mines 1221 | -9/Mines | Accompanied by 3 allies 1229 | -9/Mines | Discovered new exit (range 7) 1270 | -9/Mines | Entered Materials 1270 | -8/Materials | Accompanied by 3 allies 1270 | -8/Materials | Evolved 4 slots: Power x1, Propulsion x2, Utility x1 1315 | -8/Materials | Discovered new exit (range 4) 1332 | -8/Materials | Entered Factory 1332 | -7/Factory | Evolved 2 slots: Propulsion x1, Utility x1 1370 | -7/Factory | Discovered new exit (range 15) 1374 | -7/Factory | Entered Lower Caves 1481 | -7/Lower Caves | Core integrity fell below 50% 1497 | -7/Lower Caves | Lost 11 parts (2p6n2u1w) 1529 | -7/Lower Caves | Learned location of 1 exit from Factory 1620 | -7/Lower Caves | Core integrity fell below 20% 1649 | -7/Lower Caves | System corruption reached 10% 1710 | -7/Lower Caves | Discovered new exit (range 5) 1714 | -7/Lower Caves | Entered another Lower Caves area 1725 | -7/Lower Caves | Learned location of 1 exit from Factory 1809 | -7/Lower Caves | Attracted the attention of an 0b10 checkpoint 1923 | -7/Lower Caves | Destroyed by G-47 Trooper with Particle Gun Last Messages --------------- LOCATION=UNKNOWN GOAL=ESCAPE 01716_ Searching scrap... 01716_ Found Gatling Laser. 01716_ Found Gauss Cannon. 01716_ Found Mak. Flight Unit. 01716_ Found Shock Absorption System. 01716_ Found 61 Matter. 01718_ Acquired Mak. Flight Unit. 01719_ System corrupted: Matter fused (-8). 01719_ Acquired 8 matter. 01725_ Acquired derelict log, extracted data. Data stored: Factory exits (x1). 01744_ System corrupted: Heat flow error (+110). 01793_ System corrupted: Component data lost. 01809_ Y-54 Guardian: "INTERCEPTING UNREGISTERED DERELICT." 01859_ BMY,MC9|YGH%KMTU1GKEXI4GASU%OP 01885_ O0BXYWJLXKVE/S B|%=AZLH2EVZY6TEQ 01907_ System corrupted: Heat flow error (+228). Map ----- +----------------------------------------------------+ | ????????????????????????????????????????????# | | ????????????????????????????????????????????###### | | ?????????????????????????????????????????????????? | | ???????????????????????????????? #???????????????? | | ?????????????????????????????? #??????????????? | | ??????????????????????????????% ????????##????# | | ??????????????????????????????? ????? #### | | ??????????????????????????????? ???? | | ???????????????????????????????? ????# | | ???????????????????????????????? %##???#### | | ???????????????????????? #?????? =###????#### | | ???????????????????????? ?????? %% ##??????## | | ??????????????????????## ???????% #???????# | | ?????????????????????? ??????? %%#??###??## | | ?????????????????????? ???????# #?## ???## | | ?????????????????????? ??????## #?# ????? | | ??????????????????????# ??????# #?# ????? | | ???????????????????#### ?????## #?# ????? | | ???????????????????# ?????# ### ????? | | ???????????????????? #?????# ## ## #???# | | ????????????????????? #?????# #?## ##?## | | ?????????????????????? #?????# #???# ### | | ??????????????????????? #?????# ##### | | ???????????????????????# #?????# ## | | ??????????????????????## #?????# ### | | ????????????????????### @############ ### | | ????????????????????#g g #?????# ### | | ???????????????????# gg##### ####### | | ???????????????????# ????# | | ???????????????????## ????###### #### | | ????????????????????#####?????????# ## #??## | | ??????????????????????????????????########???### | | ???????????????????????????????????????????????### | | ?????????????????????????????????????????????????? | | ?????????????????????????????????????????????????? | | ?????????????????????????????????????????????????? | | ?????????????????????????????????????????????????? | | ?????????????????????????????????????????????????? | | ?????????????????????????????????????????????????? | | ?????????????????????????????????????????????????? | | ?????????????????????????????????????????????????? | | ?????????????????????????????????????????????????? | | ?????????????????????????????????????????????????? | | ?????????????????????????????????????????????????? | | ?????????????????????????????????????????????????? | | ?????????????????????????????????????????????????? | | ?????????????????????????????????????????????????? | | ?????????????????????????????????????????????????? | | | | | +----------------------------------------------------+ Best States ------------- Heat Dissipation 34 Coolant Potential 65 Energy Generation 15 Energy Capacity 275 Matter Stores 300 Matter Capacity 300 Sight Range 16 Terrain Scan Range 16 Terrain Scan Density 10 Evasion (%) 65 Recoil Reduction 2 Item Schematics ----------------- None Robot Schematics ------------------ None Fabricated ------------ Nothing Repaired ---------- Nothing Studied --------- None Alien Tech Used ----------------- None Achievements -------------- None Challenges ------------ None Game ------ Seed ResetTiamatMapper Manual? 0 Play Time 00:21:38 Cumulative 34.5 hours Start 2026.02.28 @ 00:38:54 End 2026.02.28 @ 00:59:34 Sessions 1 Manual Loads 0 Difficulty Rogue Special Mode None Game No. 41 Rogue 41 Adventurer 0 Explorer 0 Win Type - Total 0 Types 0/0/0/0/0/0/0/0/0/0 Lore% 15 Gallery% 30 Achievement% 22 Wizard Run 0 Options --------- Layout 2 ASCII 0 Keyboard 0 Movement Numpad Keybinds 1 Fullscreen 1 Font 24/Smallcaps Map View 50x44 Zoom Use 0% Tactical HUD 1 Map Filters NONE Filters NONE Steam 1 RUN: 8b16cab8-d4f0-43aa-9625-e19d96cdc6d1